bitfinex-derivatives/quotes_BTCF0:USTF0_20250915
["timestamp","ask_amount","ask_price","bid_price","bid_amount"]
[1757953136502,1.60218741,114850.0,114840.0,0.0511]
[1757953136905,0.78490741,114850.0,114840.0,0.0511]
[1757953137101,0.78490741,114850.0,114840.0,0.07419]
[1757953137308,1.60210741,114850.0,114840.0,0.02419]
[1757953138207,1.63338642,114850.0,114840.0,0.02419]
[1757953138509,0.81618642,114850.0,114840.0,0.02419]
[1757953138906,1.63330642,114850.0,114840.0,0.02419]
[1757953139704,1.32374712,114850.0,114840.0,0.02419]
[1757953139919,1.63326642,114850.0,114840.0,0.02419]
[1757953140408,0.81618642,114850.0,114840.0,0.02419]
[1757953140609,1.63326642,114850.0,114840.0,0.02419]
[1757953141209,1.63322642,114850.0,114840.0,0.02419]
[1757953141609,1.32366712,114850.0,114840.0,0.02419]
[1757953142309,1.32362712,114850.0,114840.0,0.02419]
[1757953142812,1.32362712,114850.0,114840.0,0.0011]
[1757953143407,1.32362712,114850.0,114840.0,0.02419]
[1757953144413,1.60190741,114850.0,114840.0,0.0011]
[1757953144607,1.63318366,114850.0,114840.0,0.0011]
[1757953144807,1.60190741,114850.0,114840.0,0.0011]
[1757953146011,1.55495919,114850.0,114840.0,0.0011]
[1757953147005,1.61756544,114850.0,114840.0,0.0011]
[1757953147207,1.60187487,114850.0,114840.0,0.0011]
[1757953148414,1.85187487,114850.0,114840.0,0.0011]
[1757953148614,1.80495919,114850.0,114840.0,0.0011]
[1757953148812,1.49539989,114850.0,114840.0,0.0011]
[1757953149113,1.55495919,114850.0,114840.0,0.02419]
[1757953149312,1.55495919,114850.0,114840.0,0.0011]
[1757953154118,1.61756544,114850.0,114840.0,0.0011]
[1757953155318,1.66880614,114850.0,114840.0,0.0011]
[1757953155519,1.97836544,114850.0,114840.0,0.0011]
[1757953155817,0.03603,114820.0,114810.0,0.02309]
[1757953156120,0.06734739,114820.0,114810.0,1.8126493]
[1757953156311,0.08885182,114820.0,114810.0,1.8126493]
[1757953156510,0.16016259,114820.0,114810.0,1.8126493]
[1757953156711,0.16016259,114820.0,114810.0,1.50309]
[1757953156912,0.16016259,114820.0,114810.0,1.8126493]
[1757953158120,0.1288452,114820.0,114810.0,0.6426493]
[1757953158318,0.16016259,114820.0,114810.0,0.33509]
[1757953158723,0.16216259,114820.0,114810.0,0.33509]
[1757953159220,0.1308452,114820.0,114810.0,0.33509]
[1757953159620,0.1308452,114820.0,114810.0,0.6446493]
[1757953161614,0.1308452,114820.0,114810.0,0.002]
[1757953161615,0.83252189,114820.0,114810.0,0.002]
[1757953161813,0.83252189,114820.0,114810.0,0.292]
[1757953162015,0.87949798,114820.0,114810.0,0.292]
[1757953162214,0.8794781,114820.0,114810.0,0.292]
[1757953162822,0.8794781,114820.0,114810.0,0.002]
[1757953164213,1.3859588,114820.0,114810.0,0.6146493]
[1757953164418,1.33898271,114820.0,114810.0,0.6146493]
[1757953164619,1.33898271,114820.0,114810.0,0.30509]
[1757953165318,0.52294271,114820.0,114810.0,0.30509]
[1757953165823,1.33894271,114820.0,114810.0,0.30509]
[1757953166019,0.52294271,114820.0,114810.0,0.282]
[1757953166223,0.83250201,114820.0,114810.0,0.282]
[1757953166522,1.64846201,114820.0,114810.0,0.30406]
[1757953167123,1.33890271,114820.0,114810.0,0.30406]
[1757953169524,1.33890271,114820.0,114810.0,0.282]
[1757953169525,0.83250201,114820.0,114810.0,0.282]
[1757953169823,2.00549744,114820.0,114810.0,0.282]
[1757953171723,1.95852135,114820.0,114810.0,0.282]
[1757953172026,1.95844135,114820.0,114810.0,0.282]
[1757953172327,1.33870271,114820.0,114810.0,0.282]
[1757953172526,1.95844135,114820.0,114810.0,0.282]
[1757953173723,1.97411993,114820.0,114810.0,0.282]
[1757953174133,1.35438129,114820.0,114810.0,0.002]
[1757953174333,1.97411993,114820.0,114810.0,0.002]
[1757953174529,1.95842174,114820.0,114810.0,0.0021]
[1757953175932,2.00539783,114820.0,114810.0,0.0021]
[1757953176835,2.53398925,114820.0,114780.0,0.30986932]
[1757953177033,0.34499932,114790.0,114780.0,0.34206]
[1757953177235,0.87215443,114790.0,114780.0,0.65192932]
[1757953177436,0.87215443,114790.0,114780.0,1.82192932]
[1757953178930,1.18402375,114790.0,114780.0,1.82592932]
[1757953179732,1.18402375,114790.0,114780.0,0.65592932]
[1757953180333,1.19251335,114790.0,114780.0,0.65592932]
[1757953181026,1.55331335,114790.0,114780.0,0.65592932]
[1757953181220,1.55331335,114790.0,114780.0,0.34606]
[1757953181529,1.58459502,114790.0,114780.0,0.324]
[1757953181728,1.58459502,114790.0,114780.0,0.004]
[1757953181922,0.76907502,114790.0,114780.0,0.004]
[1757953182133,1.63137111,114790.0,114780.0,0.004]
[1757953182330,1.62937111,114790.0,114760.0,1.5308]
[1757953182628,0.00966,114770.0,114760.0,2.18066932]
[1757953183329,0.03116443,114770.0,114760.0,2.18066932]
[1757953183530,0.03116443,114770.0,114760.0,1.8748]
[1757953183733,0.03116443,114770.0,114760.0,2.49453864]
[1757953185133,0.03116443,114770.0,114760.0,2.49353864]
[1757953185436,0.03316443,114770.0,114760.0,2.49353864]
[1757953186131,0.10191455,114770.0,114760.0,2.49353864]
[1757953187533,0.10191455,114770.0,114760.0,1.8738]
[1757953187736,0.10191455,114770.0,114760.0,2.49353864]
[1757953188034,0.10191455,114770.0,114760.0,1.8738]
[1757953188332,0.10191455,114770.0,114760.0,2.49353864]
[1757953190130,0.41178387,114770.0,114760.0,1.82286932]
[1757953190329,0.43425387,114770.0,114760.0,0.67492932]
[1757953191030,0.43425387,114770.0,114760.0,0.36506]
[1757953191233,0.79505387,114770.0,114760.0,0.07206]
[1757953191434,1.06285526,114770.0,114760.0,0.052]
[1757953191732,1.09413693,114770.0,114760.0,0.002]
[1757953191932,1.14111302,114770.0,114760.0,0.002]
[1757953192232,1.09413693,114770.0,114760.0,0.002]
[1757953192424,1.09213693,114770.0,114750.0,0.30986932]
[1757953192625,1.51975932,114760.0,114750.0,0.66192932]
[1757953192824,1.54126375,114760.0,114750.0,0.66192932]
[1757953193528,1.18146375,114760.0,114750.0,0.66192932]
[1757953193723,0.05663443,114760.0,114750.0,0.66192932]
[1757953193929,0.87151443,114760.0,114750.0,0.66192932]
[1757953194131,0.87151443,114760.0,114750.0,0.35206]
[1757953194326,1.54218375,114760.0,114750.0,0.66192932]
[1757953195132,1.54218375,114760.0,114750.0,0.66292932]
[1757953195928,2.10405307,114760.0,114750.0,0.331]
[1757953196134,2.13533474,114760.0,114750.0,0.331]
[1757953196332,1.5155961,114760.0,114750.0,0.331]
[1757953196531,2.13533474,114760.0,114750.0,0.35382]
[1757953196937,1.82542542,114760.0,114750.0,0.66368932]
[1757953197137,1.5155561,114760.0,114750.0,0.66368932]
[1757953197438,1.82542542,114760.0,114750.0,0.66368932]
[1757953198035,1.01058542,114760.0,114750.0,0.66368932]
[1757953198242,0.05863443,114760.0,114750.0,0.66368932]
[1757953198440,0.87339443,114760.0,114750.0,0.66368932]
[1757953200030,0.05863443,114760.0,114750.0,0.66368932]
[1757953200230,0.87331443,114760.0,114750.0,0.35382]
[1757953200435,0.87331443,114760.0,114750.0,0.66368932]
[1757953200842,1.18318375,114760.0,114750.0,0.66368932]
[1757953201544,1.54398375,114760.0,114750.0,0.66368932]
[1757953201939,1.23411443,114760.0,114750.0,0.66368932]
[1757953202141,1.54398375,114760.0,114750.0,0.66368932]
[1757953202645,0.87331443,114760.0,114750.0,0.66368932]
[1757953202846,1.18318375,114760.0,114750.0,0.66368932]
[1757953203049,2.10385307,114760.0,114750.0,0.331]
[1757953203343,2.18211083,114760.0,114750.0,0.331]
[1757953203541,2.15082916,114760.0,114750.0,0.331]
[1757953204143,2.15082916,114760.0,114750.0,0.001]
[1757953204538,0.71641052,114760.0,114750.0,0.33368932]
[1757953204743,2.15070916,114760.0,114750.0,0.33368932]
[1757953205239,0.66547984,114760.0,114750.0,0.62368932]
[1757953205444,1.84079984,114760.0,114750.0,0.62368932]
[1757953206544,1.84079984,114760.0,114750.0,0.33368932]
[1757953207048,1.84079984,114760.0,114750.0,0.02382]
[1757953207345,1.84079984,114760.0,114750.0,0.33368932]
[1757953207645,1.84079984,114760.0,114750.0,0.02382]
[1757953208944,1.84079984,114760.0,114750.0,0.30382]
[1757953209648,1.84079984,114760.0,114750.0,0.61368932]
[1757953209849,1.84079984,114760.0,114750.0,0.33368932]
[1757953210549,1.53093052,114760.0,114750.0,0.33368932]
[1757953210745,1.84079984,114760.0,114750.0,0.02382]
[1757953211049,1.84079984,114760.0,114750.0,0.33368932]
[1757953211449,1.84079984,114760.0,114750.0,0.02382]
[1757953211651,1.84079984,114760.0,114750.0,0.33368932]
[1757953212146,2.10369307,114760.0,114750.0,0.33368932]
[1757953212846,1.79382375,114760.0,114750.0,0.33368932]
[1757953213552,1.48395443,114760.0,114750.0,0.33368932]
[1757953213751,1.48395443,114760.0,114750.0,0.64368932]
[1757953213953,1.79382375,114760.0,114750.0,0.64368932]
[1757953214446,1.84076413,114760.0,114750.0,0.64368932]
[1757953214751,1.84076413,114760.0,114750.0,0.33368932]
[1757953215161,2.15063345,114760.0,114750.0,0.02382]
[1757953216854,1.84076413,114760.0,114750.0,0.02382]
[1757953217552,1.84076413,114760.0,114750.0,0.33368932]
[1757953218155,1.84076413,114760.0,114750.0,0.02382]
[1757953218453,1.84076413,114760.0,114750.0,0.33368932]
[1757953218655,2.15063345,114760.0,114750.0,0.33368932]
[1757953219446,1.59076413,114760.0,114750.0,0.55368932]
[1757953219648,1.28089481,114760.0,114750.0,0.55368932]
[1757953219843,1.28041481,114760.0,114750.0,0.55368932]
[1757953220043,1.31173974,114760.0,114750.0,0.55368932]
[1757953220248,1.62160906,114760.0,114750.0,0.55368932]
[1757953221243,1.59028413,114760.0,114750.0,0.55368932]
[1757953223353,0.46637481,114760.0,114750.0,0.55368932]
[1757953223552,1.28025481,114760.0,114750.0,0.24382]
[1757953223755,0.10557481,114760.0,114750.0,0.55368932]
[1757953224054,0.91945481,114760.0,114750.0,0.55368932]
[1757953224456,0.07044481,114760.0,114750.0,0.56361932]
[1757953224652,0.93874571,114760.0,114750.0,0.56361932]
[1757953224956,0.89180533,114760.0,114750.0,0.56361932]
[1757953225656,0.86869533,114760.0,114750.0,0.56361932]
[1757953226155,0.05485533,114760.0,114750.0,0.56361932]
[1757953226545,0.07796533,114760.0,114750.0,0.56361932]
[1757953226746,0.07706533,114760.0,114750.0,0.56361932]
[1757953227049,0.05485533,114760.0,114750.0,0.56361932]
[1757953229359,0.02350443,114760.0,114750.0,0.56361932]
[1757953229559,0.0333509,114760.0,114750.0,0.56361932]
[1757953229762,0.0333509,114760.0,114750.0,0.56381128]
[1757953229957,0.05485533,114760.0,114750.0,0.56381128]
[1757953230463,0.05485533,114760.0,114750.0,0.87387256]
[1757953230665,0.02350443,114760.0,114750.0,0.87387256]
[1757953231164,0.02350443,114760.0,114750.0,0.56381128]
[1757953231963,0.02350443,114760.0,114750.0,0.87387256]
[1757953232268,0.04571443,114760.0,114750.0,0.92461128]
[1757953235365,0.02350443,114760.0,114750.0,2.04807256]
[1757953236672,0.02350443,114760.0,114750.0,1.23467256]
[1757953236970,0.04571443,114760.0,114750.0,0.92461128]
[1757953237766,0.02350443,114760.0,114750.0,0.92461128]
[1757953237968,0.02350443,114760.0,114750.0,1.23467256]
[1757953239764,0.02350443,114760.0,114750.0,2.04783256]
[1757953241768,0.02350443,114760.0,114750.0,1.23467256]
[1757953241973,0.02350443,114760.0,114750.0,2.04775256]
[1757953243263,0.02350443,114760.0,114750.0,1.23467256]
[1757953243466,0.02350443,114760.0,114750.0,2.04767256]
[1757953244768,0.02350443,114760.0,114750.0,2.61767256]
[1757953244974,0.002,114760.0,114750.0,2.61767256]
[1757953247172,0.002,114760.0,114750.0,1.80467256]
[1757953247375,0.002,114760.0,114750.0,2.29751256]
[1757953247978,0.002,114760.0,114750.0,1.48467256]
[1757953248175,0.002,114760.0,114750.0,2.29747256]
[1757953248975,0.002,114760.0,114750.0,1.48467256]
[1757953249278,0.002,114760.0,114750.0,2.29747256]
[1757953249675,0.03757,114760.0,114750.0,1.73737128]
[1757953249974,0.05916726,114760.0,114750.0,0.91468128]
[1757953250278,0.05916726,114760.0,114750.0,1.72740128]
[1757953250476,0.04580726,114760.0,114750.0,1.73733128]
[1757953250666,0.04580726,114760.0,114750.0,1.42727]
[1757953250667,0.29580726,114760.0,114750.0,1.42727]
[1757953250870,0.66996726,114760.0,114750.0,0.24382]
[1757953251068,0.30916726,114760.0,114750.0,0.55388128]
[1757953256177,0.29580726,114760.0,114750.0,1.22974256]
[1757953256475,0.04580726,114760.0,114750.0,1.22974256]
[1757953256676,0.02359726,114760.0,114750.0,1.22974256]
[1757953260385,0.03662726,114760.0,114750.0,1.72708128]
[1757953260684,0.05936726,114760.0,114750.0,0.91468128]
[1757953260883,0.05936726,114760.0,114750.0,1.72700128]
[1757953263086,0.05936726,114760.0,114750.0,2.03706256]
[1757953263383,0.05939455,114760.0,114750.0,2.03706256]
[1757953263584,0.04636455,114760.0,114750.0,2.04206256]
[1757953265786,0.04636455,114760.0,114750.0,2.04186256]
[1757953265981,0.02362455,114760.0,114750.0,2.04186256]
[1757953266185,0.02362455,114760.0,114750.0,2.06186256]
[1757953269291,0.02362455,114760.0,114750.0,2.36186256]
[1757953269692,0.02362455,114760.0,114750.0,2.62186256]
[1757953270392,0.002,114760.0,114750.0,2.70897716]
[1757953270590,0.002,114760.0,114750.0,2.62186256]
[1757953271088,0.002,114760.0,114750.0,2.63047476]
[1757953271885,0.002,114760.0,114750.0,2.32047476]
[1757953272085,0.002,114760.0,114750.0,2.31166256]
[1757953272286,0.002,114760.0,114750.0,2.32020908]
[1757953273393,0.002,114760.0,114750.0,2.31162256]
[1757953273892,0.002,114760.0,114750.0,2.37996657]
[1757953275588,0.002,114760.0,114750.0,2.38853918]
[1757953276693,0.002,114760.0,114750.0,2.67853918]
[1757953277993,0.002,114760.0,114750.0,2.74565378]
[1757953278195,0.0001,114770.0,114760.0,0.01261]
[1757953278392,0.07014685,114780.0,114770.0,0.02723]
[1757953278588,0.09166207,114780.0,114770.0,1.80973128]
[1757953279600,0.09366207,114780.0,114770.0,1.80973128]
[1757953279795,0.02361522,114780.0,114770.0,1.80973128]
[1757953280000,0.02361522,114780.0,114770.0,2.11979256]
[1757953281099,0.02361522,114780.0,114770.0,2.12079256]
[1757953281894,0.02361522,114780.0,114770.0,2.14079256]
[1757953282099,0.02361522,114780.0,114770.0,2.75079256]
[1757953282297,0.002,114780.0,114770.0,2.16081476]
[1757953282498,0.002,114780.0,114770.0,2.48081476]
[1757953282801,0.002,114780.0,114770.0,2.46081476]
[1757953283903,0.002,114780.0,114770.0,3.63081476]
[1757953284102,0.002,114780.0,114770.0,3.33081476]
[1757953285302,0.002,114780.0,114770.0,3.33057476]
[1757953286102,0.002,114780.0,114770.0,3.59267476]
[1757953286904,0.002,114780.0,114770.0,3.93267476]
[1757953288104,0.002,114780.0,114770.0,3.59267476]
[1757953289800,0.002,114780.0,114770.0,3.88267476]
[1757953289996,0.002,114780.0,114770.0,4.24977416]
[1757953290197,0.002,114780.0,114770.0,4.16267476]
[1757953290406,0.002,114780.0,114770.0,3.59267476]
[1757953290800,0.002,114780.0,114770.0,2.45121348]
[1757953290994,0.002,114780.0,114770.0,3.26237348]
[1757953291300,0.002,114780.0,114770.0,2.45221348]
[1757953291495,0.28642964,114780.0,114770.0,2.44640348]
[1757953291802,0.28642964,114780.0,114770.0,3.25750657]
[1757953292004,0.28442964,114780.0,114770.0,2.99540657]
[1757953292195,0.28542964,114780.0,114770.0,2.99740657]
[1757953293905,0.28542964,114780.0,114770.0,3.00321657]
[1757953295105,0.28542964,114780.0,114770.0,3.31322094]
[1757953295302,0.27257964,114780.0,114770.0,3.31322094]
[1757953296107,0.27257964,114780.0,114770.0,3.00321657]
[1757953296400,0.28542964,114780.0,114770.0,2.99740657]
[1757953298304,0.27257964,114780.0,114770.0,3.00321657]
[1757953298500,0.27257964,114780.0,114770.0,3.31322094]
[1757953299006,0.28542964,114780.0,114770.0,3.30741094]
[1757953299207,0.28542964,114780.0,114770.0,2.99740657]
[1757953299407,0.03542964,114780.0,114770.0,2.99740657]
[1757953300305,0.03542964,114780.0,114770.0,2.6874022]
[1757953300707,0.03542964,114780.0,114770.0,2.99740657]
[1757953302411,0.03542964,114780.0,114770.0,3.00321657]
[1757953302709,0.02257964,114780.0,114770.0,3.00321657]
[1757953304102,0.02257964,114780.0,114770.0,3.31322094]
[1757953304300,0.03542964,114780.0,114770.0,3.30741094]
[1757953305013,0.03542964,114780.0,114770.0,2.6874022]
[1757953305209,0.03542964,114780.0,114770.0,2.99740657]
[1757953306606,0.03542964,114780.0,114770.0,3.30741094]
[1757953307106,0.03542964,114780.0,114770.0,2.99740657]
[1757953308710,0.03542964,114780.0,114770.0,2.99684657]
[1757953309210,0.03542964,114780.0,114770.0,3.30685094]
[1757953309809,0.02257964,114780.0,114770.0,3.30685094]
[1757953310011,0.02257964,114780.0,114770.0,3.31266094]
[1757953311014,0.02257964,114780.0,114770.0,2.6926522]
[1757953311312,0.02257964,114780.0,114770.0,3.31266094]
[1757953312113,0.03542964,114780.0,114770.0,3.30685094]
[1757953312911,0.03542964,114780.0,114770.0,2.99684657]
[1757953313511,0.03542964,114780.0,114770.0,3.30685094]
[1757953315214,0.03542964,114780.0,114770.0,2.99684657]
[1757953315515,0.03542964,114780.0,114770.0,3.30685094]
[1757953316018,0.02257964,114780.0,114770.0,3.31266094]
[1757953317215,0.02257964,114780.0,114770.0,2.50206094]
[1757953317512,0.02257964,114780.0,114770.0,3.31242094]
[1757953318313,0.03594964,114780.0,114770.0,3.30661094]
[1757953319818,0.03594964,114780.0,114770.0,2.49625094]
[1757953320216,0.03594964,114780.0,114770.0,3.30649094]
[1757953320614,0.02257964,114780.0,114770.0,3.31230094]
[1757953322318,0.02257964,114780.0,114770.0,3.31226094]
[1757953330529,0.03594964,114780.0,114770.0,3.30645094]
[1757953331029,0.03594964,114780.0,114770.0,1.8762422]
[1757953331327,0.03594964,114780.0,114770.0,2.99612657]
[1757953331918,0.03594964,114780.0,114770.0,2.63532657]
[1757953332126,0.03594964,114780.0,114770.0,2.3253222]
[1757953332329,0.03594964,114780.0,114770.0,2.61530437]
[1757953332330,0.39674964,114780.0,114770.0,2.61530437]
[1757953334631,0.03594964,114780.0,114770.0,2.61530437]
[1757953339129,0.34595401,114780.0,114770.0,1.80542437]
[1757953339335,1.64697355,114780.0,114760.0,0.0001]
[1757953339530,2.12196912,114770.0,114760.0,0.0001]
[1757953339730,0.03454,114760.0,114750.0,0.02159]
[1757953340036,1.09374197,114760.0,114750.0,0.34149]
[1757953340328,1.06828567,114760.0,114750.0,0.02149]
[1757953340536,0.7552813,114760.0,114750.0,0.54149437]
[1757953340729,0.7552813,114760.0,114750.0,0.65149437]
[1757953340931,0.08447693,114760.0,114750.0,0.65149437]
[1757953341130,0.08447693,114760.0,114750.0,0.45149437]
[1757953341330,0.05311964,114760.0,114750.0,0.66149437]
[1757953342428,0.05511964,114760.0,114750.0,0.66149437]
[1757953344439,0.12327639,114760.0,114750.0,0.66149437]
[1757953344836,0.12327639,114760.0,114750.0,0.35149]
[1757953345039,0.12327639,114760.0,114750.0,0.66149437]
[1757953345642,0.48407639,114760.0,114750.0,0.66149437]
[1757953345942,0.48407639,114760.0,114750.0,0.35149]
[1757953346241,0.48407639,114760.0,114750.0,0.66149437]
[1757953346643,0.12327639,114760.0,114750.0,0.66149437]
[1757953347743,0.12327639,114760.0,114750.0,0.35149]
[1757953348542,0.12327639,114760.0,114750.0,0.66149437]
[1757953348739,0.43328076,114760.0,114750.0,0.66149437]
[1757953348942,0.12327639,114760.0,114750.0,0.66149437]
[1757953350651,0.12327639,114760.0,114750.0,0.35149]
[1757953350947,0.43328076,114760.0,114750.0,0.35149]
[1757953351148,0.43328076,114760.0,114750.0,0.02149]
[1757953351348,0.43328076,114760.0,114750.0,0.58149437]
[1757953352349,0.43328076,114760.0,114750.0,0.27149]
[1757953352551,0.43328076,114760.0,114750.0,0.33149437]
[1757953352848,0.43328076,114760.0,114750.0,0.60149437]
[1757953353349,0.12327639,114760.0,114750.0,0.60149437]
[1757953353550,0.43328076,114760.0,114750.0,0.60149437]
[1757953353849,0.12327639,114760.0,114750.0,0.29149]
[1757953354051,0.12327639,114760.0,114750.0,0.60160669]
[1757953355549,0.12327639,114760.0,114750.0,0.31149]
[1757953355751,0.12327639,114760.0,114750.0,0.62160669]
[1757953356149,0.12327639,114760.0,114750.0,0.58160669]
[1757953356456,0.11290639,114760.0,114750.0,0.90465338]
[1757953357048,0.11290639,114760.0,114750.0,0.59453669]
[1757953359253,0.11361954,114760.0,114750.0,0.59453669]
[1757953364360,0.11361954,114760.0,114750.0,0.34453669]
[1757953364561,0.11361954,114760.0,114750.0,0.65465338]
[1757953365256,0.11361954,114760.0,114750.0,0.34453669]
[1757953365662,0.11361954,114760.0,114750.0,0.37453669]
[1757953366360,0.11361954,114760.0,114750.0,0.34453669]
[1757953366555,0.11361954,114760.0,114750.0,0.57453669]
[1757953366862,0.15773683,114760.0,114750.0,0.36160669]
[1757953367057,0.15773683,114760.0,114750.0,0.60160669]
[1757953371062,0.14497683,114760.0,114750.0,0.58453669]
[1757953371365,0.14497683,114760.0,114750.0,0.62453669]
[1757953372769,0.12380683,114760.0,114750.0,0.93465338]
[1757953372970,0.09244954,114760.0,114750.0,1.29545338]
[1757953373769,0.02429279,114760.0,114750.0,1.54545338]
[1757953375172,0.02429279,114760.0,114750.0,1.86545338]
[1757953375365,0.002,114760.0,114750.0,1.86545338]
[1757953375664,0.002,114760.0,114750.0,2.35433338]
[1757953380569,0.002,114760.0,114750.0,2.66433338]
[1757953380875,0.0001,114770.0,114760.0,0.02499]
[1757953381075,0.0177899,114780.0,114770.0,0.0278]
[1757953381271,0.03999831,114780.0,114770.0,1.84739669]
[1757953382473,0.0176899,114780.0,114770.0,2.15751338]
[1757953382675,0.0176899,114780.0,114770.0,2.48751338]
[1757953383071,0.0001,114790.0,114770.0,2.82461288]
[1757953383277,0.0001,114790.0,114780.0,1.01563338]
[1757953383476,0.0001,114800.0,114790.0,0.03492]
[1757953383677,0.05263729,114810.0,114800.0,0.02499]
[1757953383873,0.04346105,114810.0,114800.0,1.03590669]
[1757953384573,0.05212633,114810.0,114800.0,1.03590669]
[1757953385179,0.05712633,114810.0,114800.0,1.03790669]
[1757953385378,0.07072633,114810.0,114800.0,0.72479]
[1757953385583,0.07072633,114810.0,114800.0,1.03490669]
[1757953386079,0.07072633,114810.0,114800.0,0.72479]
[1757953386274,0.07072633,114810.0,114800.0,1.03490669]
[1757953388080,0.1391391,114810.0,114800.0,1.03490669]
[1757953388275,0.1255391,114810.0,114800.0,1.03490669]
[1757953388474,0.1255391,114810.0,114800.0,1.03790669]
[1757953388671,0.1255391,114810.0,114800.0,1.84626669]
[1757953389376,0.1255391,114810.0,114800.0,1.03790669]
[1757953389581,0.1255391,114810.0,114800.0,1.03490669]
[1757953389582,0.1391391,114810.0,114800.0,1.03490669]
[1757953390382,0.1391391,114810.0,114800.0,1.84318669]
[1757953391684,0.1255391,114810.0,114800.0,1.84618669]
[1757953393986,0.1043591,114810.0,114800.0,1.84618669]
[1757953394889,0.02728105,114810.0,114800.0,2.15630338]
[1757953395184,0.005,114810.0,114800.0,2.15630338]
[1757953395779,0.005,114810.0,114800.0,2.40630338]
[1757953396083,0.005,114810.0,114800.0,2.70630338]
[1757953396480,0.0001,114820.0,114800.0,2.70630338]
[1757953396783,0.0001,114820.0,114810.0,1.00302338]
[1757953396984,0.0001,114830.0,114820.0,0.0287]
[1757953397183,0.0137,114840.0,114820.0,1.03961669]
[1757953397384,0.03488,114840.0,114830.0,0.33210669]
[1757953397588,0.05698965,114840.0,114830.0,0.66210669]
[1757953398488,0.07056702,114840.0,114830.0,0.66310669]
[1757953398787,0.07556702,114840.0,114830.0,0.66410669]
[1757953399181,0.07556702,114840.0,114830.0,1.02490669]
[1757953401083,0.07556702,114840.0,114830.0,0.66410669]
[1757953401589,0.14550768,114840.0,114830.0,0.66410669]
[1757953402089,0.14550807,114840.0,114830.0,0.66410669]
[1757953402282,0.17686536,114840.0,114830.0,0.66410669]
[1757953406093,0.16326536,114840.0,114830.0,0.67687669]
[1757953406998,0.17659536,114840.0,114830.0,0.66410669]
[1757953407297,0.2236313,114840.0,114830.0,0.66410669]
[1757953409302,0.19227401,114840.0,114830.0,0.66410669]
[1757953409698,0.22351191,114840.0,114830.0,0.33410669]
[1757953410005,0.19227401,114840.0,114830.0,0.33410669]
[1757953410604,0.18900233,114840.0,114830.0,0.59687669]
[1757953410795,0.14196639,114840.0,114830.0,0.95767669]
[1757953411193,0.13338902,114840.0,114830.0,0.95767669]
[1757953411398,0.06344836,114840.0,114830.0,1.26779338]
[1757953412395,0.03221004,114840.0,114830.0,1.26779338]
[1757953412695,0.02721004,114840.0,114830.0,1.51679338]
[1757953412901,0.02721004,114840.0,114830.0,1.51879338]
[1757953412902,0.02821004,114840.0,114830.0,1.51879338]
[1757953413199,0.03723832,114840.0,114830.0,1.51879338]
[1757953413399,0.02421004,114840.0,114830.0,1.51779338]
[1757953413804,0.02421004,114840.0,114830.0,1.5167071]
[1757953414308,0.02421004,114840.0,114830.0,2.3241471]
[1757953416502,0.03323832,114840.0,114830.0,2.3241471]
[1757953416699,0.05544836,114840.0,114830.0,2.3241471]
[1757953416998,0.03323832,114840.0,114830.0,2.3241471]
[1757953417198,0.05550371,114840.0,114830.0,1.5167071]
[1757953417400,0.05550371,114840.0,114830.0,2.3240671]
[1757953418002,0.02426539,114840.0,114830.0,2.3240671]
[1757953419108,0.02426539,114840.0,114830.0,1.5167071]
[1757953419305,0.02426539,114840.0,114830.0,2.0739871]
[1757953420209,0.02426539,114840.0,114830.0,1.2667071]
[1757953420408,0.02426539,114840.0,114830.0,2.0739871]
[1757953420609,0.02426539,114840.0,114830.0,1.2667071]
[1757953420809,0.02426539,114840.0,114830.0,2.0739471]
[1757953423211,0.03323832,114840.0,114830.0,2.0739471]
[1757953423409,0.02426539,114840.0,114830.0,2.0738671]
[1757953424210,0.03323832,114840.0,114830.0,2.0738671]
[1757953424506,0.05550371,114840.0,114830.0,2.0738671]
[1757953426304,0.02426539,114840.0,114830.0,2.0738671]
[1757953426611,0.02426539,114840.0,114830.0,1.2667071]
[1757953426810,0.05550371,114840.0,114830.0,2.0737871]
[1757953428313,0.02426539,114840.0,114830.0,2.0737871]
[1757953428508,0.02426539,114840.0,114830.0,2.0737471]
[1757953429610,0.02426539,114840.0,114830.0,2.0737071]
[1757953430810,0.02426539,114840.0,114830.0,1.2667071]
[1757953431308,0.02426539,114840.0,114830.0,2.0736671]
[1757953432116,0.002,114840.0,114830.0,2.0736671]
[1757953432408,0.02418239,114840.0,114830.0,2.0736671]
[1757953433209,0.02418239,114840.0,114830.0,1.45452]
[1757953433606,0.02418239,114840.0,114830.0,2.0736671]
[1757953434012,0.03803239,114840.0,114830.0,1.39044355]
[1757953434211,0.61913594,114840.0,114830.0,0.58356355]
[1757953434417,0.65037426,114840.0,114830.0,1.39040355]
[1757953434616,0.34080071,114840.0,114830.0,1.39040355]
[1757953434813,0.34080071,114840.0,114830.0,0.58356355]
[1757953438314,0.34080071,114840.0,114830.0,0.8931371]
[1757953438622,0.32695071,114840.0,114830.0,0.9000971]
[1757953439017,0.02418239,114840.0,114830.0,0.9000971]
[1757953439617,0.02419932,114840.0,114830.0,0.9000971]
[1757953440014,0.02419932,114840.0,114830.0,1.2608971]
[1757953440418,0.02419932,114840.0,114830.0,1.82047065]
[1757953440829,0.02419932,114840.0,114830.0,2.11047065]
[1757953441015,0.02419932,114840.0,114830.0,1.82047065]
[1757953443224,0.02419932,114840.0,114830.0,0.89175]
[1757953443419,0.02419932,114840.0,114830.0,1.5108971]
[1757953443723,0.02419932,114840.0,114830.0,2.3175371]
[1757953447221,0.02419932,114840.0,114830.0,2.3174971]
[1757953447424,0.03699932,114840.0,114830.0,2.0604971]
[1757953447615,0.30904932,114840.0,114830.0,1.75092355]
[1757953447820,0.30904932,114840.0,114830.0,1.39012355]
[1757953449822,0.30904932,114840.0,114830.0,0.58356355]
[1757953450026,0.97707274,114840.0,114830.0,0.252]
[1757953450235,1.33787274,114840.0,114830.0,0.252]
[1757953450531,1.02829919,114840.0,114830.0,0.31157355]
[1757953450720,1.33787274,114840.0,114830.0,0.002]
[1757953450923,1.83477919,114840.0,114830.0,0.002]
[1757953451123,2.16015036,114840.0,114830.0,0.002]
[1757953451422,2.19146042,114840.0,114830.0,0.002]
[1757953451622,2.16015036,114840.0,114830.0,0.002]
[1757953451831,2.16015036,114840.0,114820.0,0.0001]
[1757953451832,0.34442355,114830.0,114820.0,0.0001]
[1757953452024,0.03485,114820.0,114810.0,0.30967355]
[1757953452223,0.72742287,114820.0,114810.0,0.60957355]
[1757953452832,0.72742287,114820.0,114810.0,0.63220355]
[1757953453030,0.72442287,114820.0,114810.0,0.63220355]
[1757953455031,1.53090287,114820.0,114810.0,0.63220355]
[1757953455229,1.53290287,114820.0,114810.0,0.63220355]
[1757953455431,0.41684932,114820.0,114810.0,0.63220355]